[Event "Titled Tuesday Blitz June 21 Late 2022"]
[White "Tari, Aryan"]
[Black "Kanyamarala, Tarun"]
[WhiteFideId "1510045"]
[BlackFideId "45004714"]
[WhiteElo "2567"]
[BlackElo "2219"]
[Result "1-0"]
[Round "03"]
[TimeControl "180+1"]
[Date "2022.06.21"]
[WhiteClock "0:00:12"]
[BlackClock "0:00:01"]

1. d4 {[%clk 0:03:00]}  f5 {[%clk 0:02:54]} 2. g4 {[%clk 0:02:52]}  d5 {[%clk 0:02:48]} 3. Nc3 {[%clk 0:02:28]}  Nf6 {[%clk 0:02:41]} 4. g5 {[%clk 0:02:21]}  Ne4 {[%clk 0:02:40]} 5. Nxe4 {[%clk 0:02:21]}  fxe4 {[%clk 0:02:41]} 6. Bf4 {[%clk 0:02:12]}  c5 {[%clk 0:02:18]} 7. e3 {[%clk 0:02:08]}  Nc6 {[%clk 0:02:14]} 8. c3 {[%clk 0:01:56]}  e5 {[%clk 0:01:43]} 9. dxe5 {[%clk 0:01:52]}  Be7 {[%clk 0:01:38]} 10. Bh3 {[%clk 0:01:26]}  O-O {[%clk 0:01:31]} 11. Bxc8 {[%clk 0:01:26]}  Rxc8 {[%clk 0:01:30]} 12. Qg4 {[%clk 0:01:24]}  d4 {[%clk 0:01:16]} 13. Ne2 {[%clk 0:01:20]}  d3 {[%clk 0:01:05]} 14. Ng3 {[%clk 0:01:20]}  Qd5 {[%clk 0:01:00]} 15. O-O {[%clk 0:01:10]}  c4 {[%clk 0:00:49]} 16. h4 {[%clk 0:01:01]}  Rce8 {[%clk 0:00:27]} 17. Nf5 {[%clk 0:00:44]}  Nxe5 {[%clk 0:00:19]} 18. Bxe5 {[%clk 0:00:38]}  Qxe5 {[%clk 0:00:19]} 19. Ng3 {[%clk 0:00:33]}  Bd6 {[%clk 0:00:18]} 20. Kg2 {[%clk 0:00:33]}  Qd5 {[%clk 0:00:18]} 21. Rad1 {[%clk 0:00:31]}  Rf3 {[%clk 0:00:17]} 22. Rd2 {[%clk 0:00:24]}  Ref8 {[%clk 0:00:11]} 23. Nxe4 {[%clk 0:00:20]}  R3f4 {[%clk 0:00:06]} 24. exf4 {[%clk 0:00:18]}  Qxe4+ {[%clk 0:00:05]} 25. Qf3 {[%clk 0:00:19]}  Rxf4 {[%clk 0:00:01]} 26. Qxe4 {[%clk 0:00:19]}  Rxe4 {[%clk 0:00:02]} 27. Kf3 {[%clk 0:00:14]}  Rf4+ {[%clk 0:00:01]} 28. Ke3 {[%clk 0:00:14]}  Rxh4 {[%clk 0:00:01]} 29. f4 {[%clk 0:00:14]}  Rh3+ {[%clk 0:00:01]} 30. Ke4 {[%clk 0:00:14]}  b5 {[%clk 0:00:02]} 31. b3 {[%clk 0:00:13]}  Bc5 {[%clk 0:00:01]} 32. bxc4 {[%clk 0:00:13]}  bxc4 {[%clk 0:00:02]} 33. Kd5 {[%clk 0:00:14]}  Be3 {[%clk 0:00:02]} 34. Rdd1 {[%clk 0:00:14]}  Rh2 {[%clk 0:00:03]} 35. Kxc4 {[%clk 0:00:15]}  Rxa2 {[%clk 0:00:02]} 36. Rxd3 {[%clk 0:00:15]}  Bb6 {[%clk 0:00:03]} 37. f5 {[%clk 0:00:14]}  Ra4+ {[%clk 0:00:03]} 38. Kb3 {[%clk 0:00:14]}  Re4 {[%clk 0:00:04]} 39. g6 {[%clk 0:00:15]}  hxg6 {[%clk 0:00:04]} 40. fxg6 {[%clk 0:00:15]}  Re6 {[%clk 0:00:04]} 41. Rg3 {[%clk 0:00:13]}  Rc6 {[%clk 0:00:04]} 42. Rg4 {[%clk 0:00:11]}  Rc8 {[%clk 0:00:04]} 43. Rh4 {[%clk 0:00:11]}  Ba5 {[%clk 0:00:04]} 44. Rh3 {[%clk 0:00:11]}  Rc6 {[%clk 0:00:04]} 45. Rg3 {[%clk 0:00:10]}  Rb6+ {[%clk 0:00:04]} 46. Kc2 {[%clk 0:00:10]}  Rc6 {[%clk 0:00:04]} 47. Re1 {[%clk 0:00:11]}  Rc8 {[%clk 0:00:03]} 48. Rge3 {[%clk 0:00:11]}  Kf8 {[%clk 0:00:01]} 49. Rf1+ {[%clk 0:00:11]}  Kg8 {[%clk 0:00:01]} 50. Rf5 {[%clk 0:00:12]}  Bb6 {[%clk 0:00:01]} 51. Re7 {[%clk 0:00:12]} 1-0


[Site "https://www.chess.com"]

[Event "Titled Tuesday Blitz June 21 Late 2022"]
[White "Thiel, Thomas"]
[Black "Melaugh, Shane"]
[WhiteFideId "4615964"]
[BlackFideId "2509580"]
[WhiteElo "2232"]
[BlackElo "1972"]
[Result "0-1"]
[Round "03"]
[TimeControl "180+1"]
[Date "2022.06.22"]
[WhiteClock "0:00:01"]
[BlackClock "0:00:06"]

1. e4 {[%clk 0:03:00]}  e6 {[%clk 0:02:59]} 2. d4 {[%clk 0:02:58]}  d5 {[%clk 0:02:59]} 3. Nc3 {[%clk 0:02:58]}  Nf6 {[%clk 0:02:59]} 4. Bg5 {[%clk 0:02:54]}  Bb4 {[%clk 0:02:53]} 5. e5 {[%clk 0:02:54]}  h6 {[%clk 0:02:53]} 6. Bd2 {[%clk 0:02:51]}  Bxc3 {[%clk 0:02:42]} 7. bxc3 {[%clk 0:02:52]}  Ne4 {[%clk 0:02:42]} 8. Bc1 {[%clk 0:02:51]}  c5 {[%clk 0:02:25]} 9. Ne2 {[%clk 0:02:49]}  Qa5 {[%clk 0:02:10]} 10. f3 {[%clk 0:02:46]}  Ng5 {[%clk 0:01:29]} 11. h4 {[%clk 0:02:43]}  Nh7 {[%clk 0:01:29]} 12. dxc5 {[%clk 0:02:34]}  Nc6 {[%clk 0:01:24]} 13. f4 {[%clk 0:02:26]}  Qxc5 {[%clk 0:01:20]} 14. a4 {[%clk 0:02:23]}  Nf8 {[%clk 0:01:18]} 15. Qd3 {[%clk 0:02:22]}  Ng6 {[%clk 0:01:17]} 16. Ba3 {[%clk 0:02:21]}  Qa5 {[%clk 0:01:14]} 17. Bd6 {[%clk 0:02:20]}  Bd7 {[%clk 0:01:09]} 18. h5 {[%clk 0:02:17]}  Nge7 {[%clk 0:01:06]} 19. Nd4 {[%clk 0:01:50]}  Nxd4 {[%clk 0:01:02]} 20. Qxd4 {[%clk 0:01:51]}  Nf5 {[%clk 0:01:03]} 21. Qb4 {[%clk 0:01:48]}  Qb6 {[%clk 0:00:46]} 22. Qxb6 {[%clk 0:01:44]}  axb6 {[%clk 0:00:47]} 23. Bb4 {[%clk 0:01:41]}  Rxa4 {[%clk 0:00:45]} 24. Rxa4 {[%clk 0:01:38]}  Bxa4 {[%clk 0:00:46]} 25. Kd2 {[%clk 0:01:35]}  Ng3 {[%clk 0:00:44]} 26. Rg1 {[%clk 0:01:33]}  Nxh5 {[%clk 0:00:44]} 27. Bd3 {[%clk 0:01:29]}  Nxf4 {[%clk 0:00:42]} 28. Ra1 {[%clk 0:01:25]}  Nxd3 {[%clk 0:00:36]} 29. cxd3 {[%clk 0:01:07]}  b5 {[%clk 0:00:36]} 30. c4 {[%clk 0:01:07]}  Kd7 {[%clk 0:00:35]} 31. cxb5 {[%clk 0:01:02]}  Bxb5 {[%clk 0:00:36]} 32. Rc1 {[%clk 0:00:55]}  Bc6 {[%clk 0:00:29]} 33. Ra1 {[%clk 0:00:52]}  f6 {[%clk 0:00:25]} 34. d4 {[%clk 0:00:45]}  f5 {[%clk 0:00:24]} 35. g3 {[%clk 0:00:43]}  g5 {[%clk 0:00:24]} 36. Rh1 {[%clk 0:00:36]}  Ke8 {[%clk 0:00:22]} 37. Ke3 {[%clk 0:00:34]}  Kf7 {[%clk 0:00:23]} 38. Bd2 {[%clk 0:00:28]}  Kg6 {[%clk 0:00:23]} 39. Ra1 {[%clk 0:00:21]}  Bb5 {[%clk 0:00:22]} 40. Rb1 {[%clk 0:00:19]}  Bc6 {[%clk 0:00:20]} 41. Ra1 {[%clk 0:00:17]}  h5 {[%clk 0:00:21]} 42. Ra7 {[%clk 0:00:14]}  Rf8 {[%clk 0:00:20]} 43. Kf2 {[%clk 0:00:13]}  Rf7 {[%clk 0:00:17]} 44. Ra8 {[%clk 0:00:11]}  Rg7 {[%clk 0:00:13]} 45. Rd8 {[%clk 0:00:08]}  Bb5 {[%clk 0:00:10]} 46. Rd6 {[%clk 0:00:07]}  Kf7 {[%clk 0:00:09]} 47. Rb6 {[%clk 0:00:03]}  Bc6 {[%clk 0:00:08]} 48. Rb4 {[%clk 0:00:02]}  Rg8 {[%clk 0:00:07]} 49. Rb6 {[%clk 0:00:01]}  h4 {[%clk 0:00:05]} 50. gxh4 {[%clk 0:00:01]}  gxh4 {[%clk 0:00:06]} 0-1


[Site "https://www.chess.com"]

[Event "Titled Tuesday Blitz June 21 Late 2022"]
[White "Urbina Perez, Juan Antonio"]
[Black "Isajevsky, Anton"]
[WhiteFideId "2217368"]
[BlackFideId "4142500"]
[WhiteElo "2192"]
[BlackElo "2510"]
[Result "0-1"]
[Round "03"]
[TimeControl "180+1"]
[Date "2022.06.22"]
[WhiteClock "0:00:15"]
[BlackClock "0:00:41"]

1. e4 {[%clk 0:03:00]}  c5 {[%clk 0:02:58]} 2. Nf3 {[%clk 0:03:00]}  d6 {[%clk 0:02:58]} 3. d4 {[%clk 0:03:00]}  cxd4 {[%clk 0:02:58]} 4. Nxd4 {[%clk 0:03:01]}  Nf6 {[%clk 0:02:58]} 5. Nc3 {[%clk 0:03:02]}  a6 {[%clk 0:02:58]} 6. Be3 {[%clk 0:03:02]}  e5 {[%clk 0:02:57]} 7. Nb3 {[%clk 0:03:02]}  Be7 {[%clk 0:02:53]} 8. Qd2 {[%clk 0:03:03]}  O-O {[%clk 0:02:31]} 9. f4 {[%clk 0:03:03]}  b5 {[%clk 0:02:24]} 10. O-O-O {[%clk 0:03:01]}  Bb7 {[%clk 0:02:24]} 11. Bd3 {[%clk 0:02:38]}  Nc6 {[%clk 0:02:04]} 12. a3 {[%clk 0:02:36]}  b4 {[%clk 0:02:00]} 13. axb4 {[%clk 0:02:31]}  Nxb4 {[%clk 0:02:01]} 14. Kb1 {[%clk 0:02:31]}  a5 {[%clk 0:01:45]} 15. fxe5 {[%clk 0:01:52]}  dxe5 {[%clk 0:01:44]} 16. Nc5 {[%clk 0:01:47]}  Bc6 {[%clk 0:01:33]} 17. Bc4 {[%clk 0:01:24]}  Qc7 {[%clk 0:01:21]} 18. Nd3 {[%clk 0:01:02]}  Nxe4 {[%clk 0:01:08]} 19. Nxe4 {[%clk 0:01:01]}  Bxe4 {[%clk 0:01:08]} 20. Nxb4 {[%clk 0:00:55]}  axb4 {[%clk 0:00:47]} 21. Bd3 {[%clk 0:00:19]}  Qa5 {[%clk 0:00:46]} 22. c3 {[%clk 0:00:15]}  Qa1+ {[%clk 0:00:40]} 23. Kc2 {[%clk 0:00:15]}  b3+ {[%clk 0:00:41]} 0-1


[Site "https://www.chess.com"]

[Event "Titled Tuesday Blitz June 21 Late 2022"]
[White "Wagner, Dennis"]
[Black "Holt, Conrad"]
[WhiteFideId "24650684"]
[BlackFideId "2034387"]
[WhiteElo "2355"]
[BlackElo "2586"]
[Result "0-1"]
[Round "03"]
[TimeControl "180+1"]
[Date "2022.06.21"]
[WhiteClock "0:00:06"]
[BlackClock "0:00:24"]

1. e4 {[%clk 0:03:00]}  e6 {[%clk 0:02:57]} 2. d4 {[%clk 0:02:59]}  d5 {[%clk 0:02:57]} 3. e5 {[%clk 0:02:59]}  c5 {[%clk 0:02:57]} 4. c3 {[%clk 0:03:00]}  Nc6 {[%clk 0:02:57]} 5. Nf3 {[%clk 0:03:01]}  Bd7 {[%clk 0:02:57]} 6. Be2 {[%clk 0:03:01]}  f6 {[%clk 0:02:55]} 7. O-O {[%clk 0:02:56]}  Qc7 {[%clk 0:02:55]} 8. Re1 {[%clk 0:02:49]}  fxe5 {[%clk 0:02:52]} 9. Nxe5 {[%clk 0:02:45]}  Nxe5 {[%clk 0:02:52]} 10. dxe5 {[%clk 0:02:46]}  O-O-O {[%clk 0:02:52]} 11. b4 {[%clk 0:02:39]}  Qxe5 {[%clk 0:02:44]} 12. Bg4 {[%clk 0:02:23]}  Qc7 {[%clk 0:02:43]} 13. Bxe6 {[%clk 0:02:18]}  Nf6 {[%clk 0:02:43]} 14. Na3 {[%clk 0:02:12]}  cxb4 {[%clk 0:02:32]} 15. cxb4 {[%clk 0:02:03]}  Bxb4 {[%clk 0:02:23]} 16. Nb5 {[%clk 0:01:55]}  Qc5 {[%clk 0:02:20]} 17. Bf4 {[%clk 0:01:30]}  Qxb5 {[%clk 0:02:10]} 18. Rc1+ {[%clk 0:01:29]}  Bc5 {[%clk 0:02:10]} 19. Qd3 {[%clk 0:00:34]}  Qc6 {[%clk 0:01:28]} 20. Rxc5 {[%clk 0:00:13]}  Qxc5 {[%clk 0:01:27]} 21. Bxd7+ {[%clk 0:00:12]}  Rxd7 {[%clk 0:01:00]} 22. Rc1 {[%clk 0:00:12]}  Qxc1+ {[%clk 0:00:59]} 23. Bxc1 {[%clk 0:00:13]}  Kb8 {[%clk 0:00:58]} 24. Bf4+ {[%clk 0:00:13]}  Ka8 {[%clk 0:00:58]} 25. h3 {[%clk 0:00:14]}  d4 {[%clk 0:00:57]} 26. g4 {[%clk 0:00:13]}  Re8 {[%clk 0:00:55]} 27. Kg2 {[%clk 0:00:13]}  a6 {[%clk 0:00:53]} 28. Bg5 {[%clk 0:00:13]}  Ne4 {[%clk 0:00:52]} 29. Bf4 {[%clk 0:00:11]}  Rf7 {[%clk 0:00:44]} 30. Bh2 {[%clk 0:00:08]}  Rxf2+ {[%clk 0:00:43]} 31. Kg1 {[%clk 0:00:06]}  Rd2 {[%clk 0:00:40]} 32. Qb3 {[%clk 0:00:07]}  Ng5 {[%clk 0:00:35]} 33. Bf4 {[%clk 0:00:06]}  Re1# {[%clk 0:00:24]} 0-1


[Site "https://www.chess.com"]

[Event "Titled Tuesday Blitz June 21 Late 2022"]
[White "Wagner, Dinara"]
[Black "Gorodetzky, David"]
[WhiteFideId "24157570"]
[BlackFideId "2813416"]
[WhiteElo "2216"]
[BlackElo "2494"]
[Result "0-1"]
[Round "03"]
[TimeControl "180+1"]
[Date "2022.06.21"]
[WhiteClock "0:00:02"]
[BlackClock "0:00:08"]

1. d4 {[%clk 0:02:58]}  Nf6 {[%clk 0:02:55]} 2. c4 {[%clk 0:02:58]}  a6 {[%clk 0:02:53]} 3. g3 {[%clk 0:02:56]}  b5 {[%clk 0:02:53]} 4. Bg2 {[%clk 0:02:56]}  c6 {[%clk 0:02:52]} 5. b3 {[%clk 0:02:55]}  d5 {[%clk 0:02:52]} 6. Nf3 {[%clk 0:02:53]}  Bf5 {[%clk 0:02:52]} 7. Bb2 {[%clk 0:02:52]}  e6 {[%clk 0:02:52]} 8. Nbd2 {[%clk 0:02:51]}  h6 {[%clk 0:02:44]} 9. O-O {[%clk 0:02:49]}  Nbd7 {[%clk 0:02:45]} 10. Rc1 {[%clk 0:02:47]}  Bd6 {[%clk 0:02:44]} 11. Re1 {[%clk 0:02:42]}  O-O {[%clk 0:02:42]} 12. Ne5 {[%clk 0:02:27]}  bxc4 {[%clk 0:02:30]} 13. bxc4 {[%clk 0:02:14]}  Bxe5 {[%clk 0:02:27]} 14. dxe5 {[%clk 0:02:13]}  Ng4 {[%clk 0:02:28]} 15. Nf3 {[%clk 0:02:01]}  Qb6 {[%clk 0:02:27]} 16. Bd4 {[%clk 0:01:59]}  c5 {[%clk 0:02:28]} 17. Ba1 {[%clk 0:01:55]}  d4 {[%clk 0:02:28]} 18. Nh4 {[%clk 0:01:26]}  Rad8 {[%clk 0:02:25]} 19. Nxf5 {[%clk 0:01:06]}  exf5 {[%clk 0:02:26]} 20. f4 {[%clk 0:00:58]}  Ne3 {[%clk 0:02:25]} 21. Qd3 {[%clk 0:00:59]}  f6 {[%clk 0:02:18]} 22. Rb1 {[%clk 0:00:38]}  Qe6 {[%clk 0:01:53]} 23. Qxe3 {[%clk 0:00:38]}  dxe3 {[%clk 0:01:52]} 24. Bd5 {[%clk 0:00:39]}  Rfe8 {[%clk 0:01:51]} 25. Bxe6+ {[%clk 0:00:38]}  Rxe6 {[%clk 0:01:52]} 26. Rb3 {[%clk 0:00:33]}  fxe5 {[%clk 0:01:51]} 27. fxe5 {[%clk 0:00:32]}  Nb6 {[%clk 0:01:42]} 28. Rc1 {[%clk 0:00:29]}  Rd2 {[%clk 0:01:42]} 29. Rxe3 {[%clk 0:00:29]}  Rxa2 {[%clk 0:01:42]} 30. Bc3 {[%clk 0:00:30]}  Nxc4 {[%clk 0:01:42]} 31. Rd3 {[%clk 0:00:30]}  Rxe2 {[%clk 0:01:41]} 32. Rd8+ {[%clk 0:00:28]}  Kh7 {[%clk 0:01:41]} 33. Rd7 {[%clk 0:00:28]}  Ne3 {[%clk 0:01:24]} 34. Rb1 {[%clk 0:00:27]}  Rg2+ {[%clk 0:01:08]} 35. Kh1 {[%clk 0:00:27]}  Rc2 {[%clk 0:01:09]} 36. Bd2 {[%clk 0:00:24]}  Nc4 {[%clk 0:01:04]} 37. Rbb7 {[%clk 0:00:23]}  Rg6 {[%clk 0:00:47]} 38. Bf4 {[%clk 0:00:24]}  Re2 {[%clk 0:00:47]} 39. Rbc7 {[%clk 0:00:23]}  Nxe5 {[%clk 0:00:46]} 40. Re7 {[%clk 0:00:20]}  Re1+ {[%clk 0:00:45]} 41. Kg2 {[%clk 0:00:20]}  Nd3 {[%clk 0:00:45]} 42. Rxe1 {[%clk 0:00:16]}  Nxe1+ {[%clk 0:00:46]} 43. Kf1 {[%clk 0:00:16]}  Nd3 {[%clk 0:00:43]} 44. Bd2 {[%clk 0:00:13]}  f4 {[%clk 0:00:34]} 45. gxf4 {[%clk 0:00:11]}  Rf6 {[%clk 0:00:34]} 46. Bc3 {[%clk 0:00:09]}  Rxf4+ {[%clk 0:00:32]} 47. Ke2 {[%clk 0:00:10]}  Ne5 {[%clk 0:00:33]} 48. Rxc5 {[%clk 0:00:06]}  Re4+ {[%clk 0:00:32]} 49. Kd2 {[%clk 0:00:07]}  Nf3+ {[%clk 0:00:31]} 50. Kd3 {[%clk 0:00:07]}  Re6 {[%clk 0:00:31]} 51. Rc7 {[%clk 0:00:08]}  Rg6 {[%clk 0:00:31]} 52. Ke4 {[%clk 0:00:07]}  Nxh2 {[%clk 0:00:30]} 53. Ra7 {[%clk 0:00:07]}  Ng4 {[%clk 0:00:30]} 54. Kf4 {[%clk 0:00:07]}  h5 {[%clk 0:00:30]} 55. Kg3 {[%clk 0:00:06]}  Nf6+ {[%clk 0:00:24]} 56. Kh4 {[%clk 0:00:07]}  Rg4+ {[%clk 0:00:24]} 57. Kh3 {[%clk 0:00:07]}  Nd5 {[%clk 0:00:24]} 58. Bd4 {[%clk 0:00:06]}  Nf4+ {[%clk 0:00:23]} 59. Kh2 {[%clk 0:00:06]}  Ne6 {[%clk 0:00:23]} 60. Be5 {[%clk 0:00:06]}  Re4 {[%clk 0:00:23]} 61. Bc3 {[%clk 0:00:03]}  Re2+ {[%clk 0:00:23]} 62. Kg1 {[%clk 0:00:04]}  h4 {[%clk 0:00:22]} 63. Rxa6 {[%clk 0:00:04]}  Ng5 {[%clk 0:00:22]} 64. Ra7 {[%clk 0:00:04]}  Ne6 {[%clk 0:00:16]} 65. Re7 {[%clk 0:00:03]}  Re4 {[%clk 0:00:15]} 66. Kh2 {[%clk 0:00:02]}  Re2+ {[%clk 0:00:12]} 67. Kh3 {[%clk 0:00:02]}  Nf4+ {[%clk 0:00:08]} 68. Kg4 {[%clk 0:00:02]}  Rxe7 {[%clk 0:00:08]} 69. Kxf4 {[%clk 0:00:03]}  Rc7 {[%clk 0:00:08]} 70. Be5 {[%clk 0:00:03]}  Rc4+ {[%clk 0:00:09]} 71. Kg5 {[%clk 0:00:02]}  h3 {[%clk 0:00:09]} 72. Kh5 {[%clk 0:00:02]}  Rc5 {[%clk 0:00:08]} 73. Kh4 {[%clk 0:00:02]}  Rxe5 {[%clk 0:00:08]} 0-1


[Site "https://www.chess.com"]

[Event "Titled Tuesday Blitz June 21 Late 2022"]
[White "Wang, Isaac"]
[Black "Baches Garcia, Guillermo"]
[WhiteFideId "30977185"]
[BlackFideId "2209764"]
[WhiteElo "2302"]
[BlackElo "2464"]
[Result "1/2-1/2"]
[Round "03"]
[TimeControl "180+1"]
[Date "2022.06.22"]
[WhiteClock "0:00:34"]
[BlackClock "0:00:22"]

1. d4 {[%clk 0:03:00]}  Nf6 {[%clk 0:02:59]} 2. c4 {[%clk 0:02:59]}  e6 {[%clk 0:03:00]} 3. Nc3 {[%clk 0:03:00]}  d5 {[%clk 0:03:00]} 4. cxd5 {[%clk 0:03:00]}  Nxd5 {[%clk 0:03:00]} 5. e4 {[%clk 0:02:57]}  Nxc3 {[%clk 0:03:00]} 6. bxc3 {[%clk 0:02:58]}  c5 {[%clk 0:03:01]} 7. Nf3 {[%clk 0:02:58]}  cxd4 {[%clk 0:03:01]} 8. cxd4 {[%clk 0:02:58]}  Bb4+ {[%clk 0:03:02]} 9. Bd2 {[%clk 0:02:57]}  Bxd2+ {[%clk 0:03:03]} 10. Qxd2 {[%clk 0:02:58]}  O-O {[%clk 0:03:03]} 11. Bc4 {[%clk 0:02:56]}  Nd7 {[%clk 0:03:03]} 12. O-O {[%clk 0:02:55]}  b6 {[%clk 0:03:03]} 13. Rac1 {[%clk 0:02:53]}  Bb7 {[%clk 0:03:01]} 14. Rfe1 {[%clk 0:02:53]}  Rc8 {[%clk 0:03:00]} 15. Bd3 {[%clk 0:02:41]}  Qe7 {[%clk 0:02:53]} 16. Qf4 {[%clk 0:02:31]}  Nf6 {[%clk 0:02:37]} 17. h3 {[%clk 0:02:03]}  h6 {[%clk 0:02:31]} 18. e5 {[%clk 0:01:51]}  Nd5 {[%clk 0:02:06]} 19. Qe4 {[%clk 0:01:50]}  g6 {[%clk 0:02:06]} 20. Qg4 {[%clk 0:01:19]}  Kg7 {[%clk 0:01:54]} 21. Nh4 {[%clk 0:01:16]}  Qg5 {[%clk 0:01:39]} 22. Qxg5 {[%clk 0:01:08]}  hxg5 {[%clk 0:01:39]} 23. Nf3 {[%clk 0:01:08]}  Nb4 {[%clk 0:01:29]} 24. Rxc8 {[%clk 0:01:05]}  Rxc8 {[%clk 0:01:22]} 25. Be4 {[%clk 0:01:04]}  Bxe4 {[%clk 0:01:18]} 26. Rxe4 {[%clk 0:01:05]}  Nxa2 {[%clk 0:01:14]} 27. Nxg5 {[%clk 0:01:05]}  b5 {[%clk 0:01:07]} 28. Rf4 {[%clk 0:01:03]}  Rc7 {[%clk 0:01:05]} 29. Rf3 {[%clk 0:01:00]}  b4 {[%clk 0:01:00]} 30. Ne4 {[%clk 0:00:57]}  Rc1+ {[%clk 0:00:43]} 31. Kh2 {[%clk 0:00:57]}  Nc3 {[%clk 0:00:38]} 32. Nd6 {[%clk 0:00:52]}  b3 {[%clk 0:00:31]} 33. Rxf7+ {[%clk 0:00:51]}  Kg8 {[%clk 0:00:31]} 34. Rb7 {[%clk 0:00:48]}  Rb1 {[%clk 0:00:28]} 35. g4 {[%clk 0:00:41]}  b2 {[%clk 0:00:22]} 36. Rb8+ {[%clk 0:00:38]}  Kg7 {[%clk 0:00:21]} 37. Rb7+ {[%clk 0:00:34]}  Kg8 {[%clk 0:00:22]} 38. Rb8+ {[%clk 0:00:34]}  Kg7 {[%clk 0:00:22]} 39. Rb7+ {[%clk 0:00:34]}  Kg8 {[%clk 0:00:22]} 1/2-1/2


[Site "https://www.chess.com"]

[Event "Titled Tuesday Blitz June 21 Late 2022"]
[White "Wartiovaara, Oliver"]
[Black "Marin Masis, Jose Esteban"]
[WhiteFideId "513024"]
[BlackFideId "6508146"]
[WhiteElo "1971"]
[BlackElo "1710"]
[Result "1-0"]
[Round "03"]
[TimeControl "180+1"]
[Date "2022.06.22"]
[WhiteClock "0:00:22"]
[BlackClock "0:00:11"]

1. e4 {[%clk 0:03:00]}  c5 {[%clk 0:02:59]} 2. Nf3 {[%clk 0:03:00]}  Nc6 {[%clk 0:02:59]} 3. Bb5 {[%clk 0:02:58]}  d6 {[%clk 0:02:58]} 4. O-O {[%clk 0:02:57]}  Bd7 {[%clk 0:02:47]} 5. Re1 {[%clk 0:02:51]}  a6 {[%clk 0:02:31]} 6. Bf1 {[%clk 0:02:50]}  g6 {[%clk 0:02:10]} 7. c3 {[%clk 0:02:45]}  Bg7 {[%clk 0:02:09]} 8. h3 {[%clk 0:02:44]}  Nf6 {[%clk 0:02:08]} 9. d4 {[%clk 0:02:44]}  cxd4 {[%clk 0:02:08]} 10. cxd4 {[%clk 0:02:45]}  O-O {[%clk 0:02:08]} 11. Nc3 {[%clk 0:02:44]}  Rc8 {[%clk 0:02:08]} 12. Bf4 {[%clk 0:02:37]}  Re8 {[%clk 0:02:05]} 13. Qd2 {[%clk 0:02:22]}  Nh5 {[%clk 0:01:43]} 14. Bg5 {[%clk 0:02:08]}  Qa5 {[%clk 0:01:28]} 15. Be3 {[%clk 0:01:40]}  b5 {[%clk 0:01:17]} 16. a3 {[%clk 0:01:36]}  Qc7 {[%clk 0:01:12]} 17. Rac1 {[%clk 0:01:30]}  Qb7 {[%clk 0:01:11]} 18. b4 {[%clk 0:01:21]}  Nf6 {[%clk 0:00:48]} 19. d5 {[%clk 0:01:06]}  Nxb4 {[%clk 0:00:36]} 20. axb4 {[%clk 0:01:05]}  Rxc3 {[%clk 0:00:36]} 21. Qxc3 {[%clk 0:01:01]}  Nxd5 {[%clk 0:00:35]} 22. Qd2 {[%clk 0:00:56]}  Nf6 {[%clk 0:00:30]} 23. Bd3 {[%clk 0:00:52]}  Bc6 {[%clk 0:00:18]} 24. Qc2 {[%clk 0:00:28]}  Rc8 {[%clk 0:00:17]} 25. Nd4 {[%clk 0:00:27]}  Bd7 {[%clk 0:00:17]} 26. Qb1 {[%clk 0:00:27]}  Re8 {[%clk 0:00:17]} 27. Nb3 {[%clk 0:00:22]}  Bc6 {[%clk 0:00:16]} 28. Na5 {[%clk 0:00:22]}  Bxe4 {[%clk 0:00:11]} 29. Nxb7 {[%clk 0:00:22]} 1-0


[Site "https://www.chess.com"]

[Event "Titled Tuesday Blitz June 21 Late 2022"]
[White "Winkels, Marcel"]
[Black "Gallegos Diaz, Carlos Alberto"]
[WhiteFideId "1003887"]
[BlackFideId "3900886"]
[WhiteElo "1900"]
[BlackElo "2362"]
[Result "0-1"]
[Round "03"]
[TimeControl "180+1"]
[Date "2022.06.22"]
[WhiteClock "0:00:01"]
[BlackClock "0:00:16"]

1. e4 {[%clk 0:03:00]}  d6 {[%clk 0:02:59]} 2. Nc3 {[%clk 0:02:58]}  Nf6 {[%clk 0:02:59]} 3. d4 {[%clk 0:02:58]}  c6 {[%clk 0:02:59]} 4. Bd2 {[%clk 0:02:56]}  e5 {[%clk 0:02:58]} 5. Nf3 {[%clk 0:02:54]}  Nbd7 {[%clk 0:02:57]} 6. Bd3 {[%clk 0:02:53]}  Be7 {[%clk 0:02:57]} 7. O-O {[%clk 0:02:51]}  O-O {[%clk 0:02:56]} 8. Re1 {[%clk 0:02:50]}  Qc7 {[%clk 0:02:56]} 9. a4 {[%clk 0:02:47]}  Re8 {[%clk 0:02:55]} 10. h3 {[%clk 0:02:39]}  h6 {[%clk 0:02:54]} 11. d5 {[%clk 0:02:30]}  Bf8 {[%clk 0:02:31]} 12. Bc4 {[%clk 0:02:09]}  a6 {[%clk 0:02:01]} 13. a5 {[%clk 0:02:07]}  b5 {[%clk 0:01:55]} 14. axb6 {[%clk 0:02:00]}  Qxb6 {[%clk 0:01:55]} 15. Na4 {[%clk 0:01:58]}  Qc7 {[%clk 0:01:54]} 16. dxc6 {[%clk 0:01:48]}  Qxc6 {[%clk 0:01:53]} 17. Qe2 {[%clk 0:01:46]}  Bb7 {[%clk 0:01:50]} 18. Bd3 {[%clk 0:01:38]}  Nc5 {[%clk 0:01:16]} 19. Nxc5 {[%clk 0:01:35]}  Qxc5 {[%clk 0:01:17]} 20. c4 {[%clk 0:01:26]}  a5 {[%clk 0:01:12]} 21. Be3 {[%clk 0:01:22]}  Qc7 {[%clk 0:01:11]} 22. Bd2 {[%clk 0:01:22]}  Nd7 {[%clk 0:01:10]} 23. Bc3 {[%clk 0:01:15]}  Nc5 {[%clk 0:01:09]} 24. Bc2 {[%clk 0:01:12]}  Bc6 {[%clk 0:01:06]} 25. Nd2 {[%clk 0:01:09]}  Be7 {[%clk 0:00:57]} 26. Kh1 {[%clk 0:01:06]}  Reb8 {[%clk 0:00:55]} 27. f3 {[%clk 0:01:03]}  Bg5 {[%clk 0:00:51]} 28. Nf1 {[%clk 0:01:01]}  Nb3 {[%clk 0:00:44]} 29. Rad1 {[%clk 0:00:58]}  a4 {[%clk 0:00:42]} 30. Ne3 {[%clk 0:00:55]}  a3 {[%clk 0:00:36]} 31. bxa3 {[%clk 0:00:49]}  Rxa3 {[%clk 0:00:37]} 32. Bb1 {[%clk 0:00:37]}  Nc5 {[%clk 0:00:29]} 33. Bd2 {[%clk 0:00:25]}  Rb2 {[%clk 0:00:27]} 34. Nc2 {[%clk 0:00:17]}  Rab3 {[%clk 0:00:20]} 35. Bxg5 {[%clk 0:00:16]}  hxg5 {[%clk 0:00:21]} 36. Qd2 {[%clk 0:00:14]}  Nd3 {[%clk 0:00:21]} 37. Re3 {[%clk 0:00:11]}  Nf4 {[%clk 0:00:20]} 38. Rxb3 {[%clk 0:00:09]}  Rxb3 {[%clk 0:00:21]} 39. Ba2 {[%clk 0:00:09]}  Rb2 {[%clk 0:00:20]} 40. Bb1 {[%clk 0:00:08]}  Qb6 {[%clk 0:00:20]} 41. Qxd6 {[%clk 0:00:07]}  Qf2 {[%clk 0:00:19]} 42. Qd8+ {[%clk 0:00:06]}  Kh7 {[%clk 0:00:19]} 43. Qxg5 {[%clk 0:00:06]}  Rxb1 {[%clk 0:00:18]} 44. Rxb1 {[%clk 0:00:05]}  Qxc2 {[%clk 0:00:18]} 45. Rg1 {[%clk 0:00:04]}  Qf2 {[%clk 0:00:17]} 46. Qxe5 {[%clk 0:00:02]}  Ne2 {[%clk 0:00:17]} 47. Qh5+ {[%clk 0:00:01]}  Kg8 {[%clk 0:00:16]} 0-1


[Site "https://www.chess.com"]